fUSD/lending_fUSD_20240503
["ID","MTS","AMOUNT","RATE_DAILY","PERIOD"]
[325346798,1714745485560,-500.0,0.00044383,32]
[325346799,1714745485570,-500.0,0.00044383,32]
[325346800,1714745485580,-500.0,0.00044383,32]
[325346801,1714745485590,-500.0,0.00044383,32]
[325346802,1714745485600,-753.039424,0.00044383,14]
[325346803,1714745485611,-500.0,0.00044383,32]
[325346804,1714745485621,-500.0,0.00044383,32]
[325346805,1714745485631,-500.0,0.00044383,32]
[325346806,1714745485644,-1345.61,0.00044383,32]
[325346807,1714745485655,-1498.44,0.00044383,32]
[325346808,1714745485665,-2889.01,0.00044383,32]
[325346809,1714745485675,-500.0,0.00044383,32]
[325346810,1714745485686,-627.15,0.00044383,32]
[325346811,1714745485697,-500.0,0.00044383,2]
[325346812,1714745485707,-644.97,0.00044383,32]
[325346813,1714745485718,-2612.87366333,0.00044383,32]
[325346814,1714745485851,-414.36,0.00036087,2]
[325346815,1714745485863,-453.46218221,0.00044109,31]
[325346816,1714745485882,-1237.62,0.00044109,31]
[325346817,1714745485907,-21761.14781779,0.00044109,31]
[325346818,1714745485920,-857.08633667,0.00044383,32]
[325346819,1714745485931,-765.59,0.00044383,32]
[325346821,1714745485943,-1329.31,0.00044383,32]
[325346822,1714745485954,-1198.34,0.00044383,32]
[325346823,1714745485966,-500.0,0.00044383,32]
[325346824,1714745485977,-151.0,0.00044383,14]
[325346825,1714745485988,-1341.97,0.00044383,32]
[325346826,1714745486000,-500.0,0.00044383,32]
[325346827,1714745486011,-500.0,0.00044383,32]
[325346828,1714745486022,-500.0,0.00044383,32]
[325346829,1714745486033,-1178.14,0.00044383,32]
[325346830,1714745486043,-692.83,0.00044383,32]
[325346831,1714745486055,-2488.33,0.00044383,32]
[325346832,1714745486070,-506.1,0.00044383,32]
[325346833,1714745486081,-2978.33,0.00044383,32]
[325346834,1714745486093,-707.23,0.00044383,32]
[325346835,1714745486104,-500.0,0.00044383,32]
[325346836,1714745486114,-2686.59,0.00044383,32]
[325346837,1714745486124,-467.840345,0.00044383,14]
[325346838,1714745486134,-500.0,0.00044383,120]
[325346839,1714745486150,-1502.41,0.00044383,32]
[325346840,1714745486160,-637.58,0.00044383,32]
[325346841,1714745486170,-500.0,0.00044383,32]
[325346842,1714745486180,-500.0,0.00044383,32]
[325346843,1714745486189,-500.0,0.00044383,32]
[325346844,1714745486199,-559.63,0.00044383,32]
[325346845,1714745486209,-467.840345,0.00044383,14]
[325346846,1714745486219,-1397.23,0.00044383,32]
[325346847,1714745486229,-500.0,0.00044383,32]
[325346848,1714745486240,-1235.73,0.00044383,32]
[325346849,1714745486249,-500.0,0.00044383,2]
[325346850,1714745486259,-554.36435368,0.00044383,32]
[325346851,1714745486269,-500.0,0.00044383,32]
[325346852,1714745486279,-500.0,0.00044383,32]
[325346853,1714745486289,-1257.13,0.00044383,32]
[325346854,1714745486299,-1087.71,0.00044383,32]
[325346855,1714745486309,-2002.73,0.00044383,32]
[325346856,1714745486319,-500.0,0.00044383,32]
[325346857,1714745486330,-500.0,0.00044383,32]
[325346858,1714745486340,-500.0,0.00044383,32]
[325346859,1714745486350,-444.727031,0.00044383,14]
[325346860,1714745486361,-500.0,0.00044383,32]
[325346861,1714745486371,-677.02,0.00044383,32]
[325346862,1714745486381,-500.0,0.00044383,32]
[325346863,1714745486396,-827.67,0.00044383,32]
[325346864,1714745486407,-444.727031,0.00044383,14]
[325346865,1714745486417,-500.0,0.00044383,32]
[325346866,1714745486427,-500.0,0.00044383,32]
[325346867,1714745486438,-441.95708341,0.00044383,32]
[325346868,1714745486448,-764.95,0.00044383,32]
[325346869,1714745486459,-872.6,0.00044383,32]
[325346870,1714745486470,-1386.34,0.00044383,32]
[325346871,1714745486480,-1253.58,0.00044383,32]
[325346872,1714745486490,-2104.1,0.00044383,32]
[325346873,1714745486499,-500.0,0.00044383,32]
[325346874,1714745486508,-500.0,0.00044383,32]
[325346875,1714745486518,-509.72,0.00044383,32]
[325346876,1714745486528,-2395.26,0.00044383,32]
[325346877,1714745486538,-500.0,0.00044383,32]
[325346878,1714745486548,-461.2056567,0.00044383,32]
[325346879,1714745486558,-891.59,0.00044383,32]
[325346880,1714745486568,-1142.95,0.00044383,32]
[325346881,1714745486578,-500.0,0.00044383,32]
[325346882,1714745486588,-500.0,0.00044383,32]
[325346883,1714745486598,-2967.93,0.00044383,10]
[325346884,1714745486608,-500.0,0.00044383,32]
[325346885,1714745486619,-500.0,0.00044383,32]
[325346886,1714745486628,-500.0,0.00044383,32]
[325346887,1714745486640,-500.0,0.00044383,32]
[325346888,1714745486649,-500.0,0.00044383,32]
[325346889,1714745486659,-500.0,0.00044383,32]
[325346890,1714745486670,-277.541708,0.00044383,14]
[325346891,1714745486680,-500.0,0.00044383,32]
[325346892,1714745486690,-972.8,0.00044383,32]
[325346893,1714745486699,-1305.43,0.00044383,32]
[325346894,1714745486710,-477.770856,0.00044383,14]
[325346895,1714745486719,-985.04,0.00044383,32]
[325346896,1714745486729,-609.58,0.00044383,32]
[325346897,1714745486739,-500.0,0.00044383,32]
[325346898,1714745486749,-500.0,0.00044383,32]
[325346899,1714745486759,-588.68,0.00044383,32]
[325346900,1714745486770,-277.541708,0.00044383,14]
[325346901,1714745486781,-151.0,0.00044383,14]
[325346902,1714745486791,-1654.89,0.00044383,32]
[325346903,1714745486801,-1659.53,0.00044383,32]
[325346904,1714745486811,-477.770856,0.00044383,14]
[325346905,1714745486822,-661.27,0.00044383,32]
[325346906,1714745486832,-500.0,0.00044383,32]
[325346907,1714745486842,-1600.22,0.00044383,32]
[325346908,1714745486853,-1243.91,0.00044383,32]
[325346909,1714745486863,-500.0,0.00044383,32]
[325346910,1714745486874,-500.0,0.00044383,32]
[325346911,1714745486885,-151.0,0.00044383,14]
[325346912,1714745486897,-1667.54,0.00044383,32]
[325346913,1714745486907,-182.460383,0.00044383,14]
[325346914,1714745486920,-500.0,0.00044383,32]
[325346915,1714745487177,-504.94892508,0.00044383,32]
[325346916,1714745487224,-500.0,0.00044383,32]
[325346917,1714745487234,-941.31,0.00044383,32]
[325346918,1714745487244,-1427.15,0.00044383,32]
[325346919,1714745487253,-500.0,0.00044383,32]
[325346920,1714745487262,-1349.75,0.00044383,32]
[325346921,1714745487271,-503.5734078,0.00044383,32]
[325346922,1714745487281,-500.0,0.00044383,32]
[325346923,1714745487290,-500.0,0.00044383,32]
[325346924,1714745487300,-500.0,0.00044383,32]
[325346925,1714745487310,-1464.06,0.00044383,32]
[325346926,1714745487319,-500.0,0.00044383,32]
[325346927,1714745487329,-595.85,0.00044383,32]
[325346928,1714745487338,-182.460383,0.00044383,14]
[325346929,1714745487348,-500.0,0.00044383,32]
[325346930,1714745487357,-500.0,0.00044383,32]
[325346931,1714745487367,-2886.07981402,0.00044383,32]
[325346932,1714745487387,-448.27018598,0.00044383,32]
[325346933,1714745487399,-1008.26401614,0.00044383,32]
[325346934,1714745487409,-500.0,0.00044383,32]
[325346935,1714745487418,-821.44,0.00044383,32]
[325346936,1714745487428,-151.0,0.00044383,14]
[325346937,1714745487437,-2406.06,0.00044383,32]
[325346938,1714745487447,-1421.54,0.00044383,32]
[325346939,1714745487457,-500.0,0.00044383,32]
[325346940,1714745487467,-151.0,0.00044383,14]
[325346941,1714745487477,-500.0,0.00044383,32]
[325346942,1714745487486,-500.0,0.00044383,32]
[325346943,1714745487496,-820.03,0.00044383,32]
[325346944,1714745487506,-500.0,0.00044383,32]
[325346945,1714745487515,-500.0,0.00044383,32]
[325346946,1714745487525,-1324.83,0.00044383,32]
[325346947,1714745487536,-1792.13,0.00044383,30]
[325346948,1714745487546,-734.99,0.00044383,32]
[325346949,1714745487555,-151.0,0.00044383,14]
[325346950,1714745487565,-1598.47,0.00044383,32]
[325346951,1714745487575,-500.59518295,0.00044383,32]
[325346952,1714745487584,-500.0,0.00044383,32]
[325346953,1714745487594,-1736.14,0.00044383,32]
[325346954,1714745487603,-500.0,0.00044383,32]
[325346955,1714745487613,-500.0,0.00044383,32]
[325346956,1714745487622,-1054.88,0.00044383,32]
[325346957,1714745487632,-500.0,0.00044383,32]
[325346958,1714745487643,-500.0,0.00044383,32]
[325346959,1714745487666,-702.55,0.00044383,32]
[325346960,1714745487676,-500.0,0.00044383,32]
[325346961,1714745487686,-1496.3,0.00044383,32]
[325346962,1714745487696,-2086.65,0.00044383,32]
[325346963,1714745487706,-874.5,0.00044383,32]
[325346964,1714745487716,-1745.87,0.00044383,32]
[325346965,1714745487726,-500.0,0.00044383,32]
[325346966,1714745487736,-500.0,0.00044383,32]
[325346967,1714745487746,-508.84976125,0.00044383,32]
[325346968,1714745487757,-500.0,0.00044383,32]
[325346969,1714745487767,-1769.55,0.00044383,32]
[325346970,1714745487777,-532.1,0.00044383,32]
[325346971,1714745487787,-500.0,0.00044383,32]
[325346972,1714745487798,-674.85,0.00044383,32]
[325346973,1714745487809,-205.2864,0.00044383,14]
[325346974,1714745487818,-1470.7,0.00044383,32]
[325346975,1714745487828,-500.0,0.00044383,32]
[325346976,1714745487837,-763.14,0.00044383,32]
[325346977,1714745487847,-2759.16,0.00044383,32]
[325346978,1714745487857,-2005.32,0.00044383,32]
[325346979,1714745487867,-500.0,0.00044383,32]
[325346980,1714745487883,-1202.5,0.00044383,32]
[325346981,1714745487894,-1728.37,0.00044383,32]
[325346982,1714745487904,-1897.48,0.00044383,32]
[325346983,1714745487914,-205.2864,0.00044383,14]
[325346984,1714745487925,-596.5,0.00044383,32]
[325346985,1714745487935,-591.73,0.00044383,2]
[325346986,1714745487945,-500.0,0.00044383,32]
[325346987,1714745487957,-500.0,0.00044383,32]
[325346988,1714745487967,-1674.84,0.00044383,32]
[325346989,1714745487978,-500.0,0.00044383,32]
[325346990,1714745487987,-500.0,0.00044383,32]
[325346991,1714745487997,-500.0,0.00044383,32]
[325346992,1714745488007,-500.0,0.00044383,32]
[325346993,1714745488017,-2818.78,0.00044383,32]
[325346994,1714745488026,-509.87,0.00044383,32]
[325346995,1714745488036,-652.39,0.00044383,32]
[325346996,1714745488045,-1724.52,0.00044383,32]
[325346997,1714745488054,-500.0,0.00044383,32]
[325346998,1714745488064,-582.54966936,0.00044383,32]
[325346999,1714745488073,-507.82378071,0.00044383,32]
[325347000,1714745488083,-1010.144803,0.00044383,14]
[325347001,1714745488092,-500.0,0.00044383,32]
[325347002,1714745488102,-500.0,0.00044383,32]
[325347003,1714745488112,-500.0,0.00044383,32]
[325347004,1714745488121,-1997.23,0.00044383,32]
[325347005,1714745488131,-500.0,0.00044383,32]
[325347006,1714745488143,-500.0,0.00044383,32]
[325347007,1714745488152,-500.0,0.00044383,32]
[325347008,1714745488163,-1010.144803,0.00044383,14]
[325347009,1714745488173,-884.44,0.00044383,32]
[325347010,1714745488182,-500.0,0.00044383,32]
[325347011,1714745488192,-500.0,0.00044383,32]
[325347012,1714745488202,-1486.29,0.00044383,32]
[325347013,1714745488212,-500.0,0.00044383,32]
[325347014,1714745488221,-505.05213568,0.00044383,32]
[325347015,1714745488231,-2569.24,0.00044383,32]
[325347016,1714745488240,-1683.44,0.00044383,32]
[325347017,1714745488250,-500.0,0.00044383,32]
[325347018,1714745488259,-1275.91,0.00044383,32]
[325347019,1714745488269,-549.58,0.00044383,32]
[325347020,1714745488278,-500.0,0.00044383,32]
[325347021,1714745488287,-500.0,0.00044383,32]
[325347022,1714745488297,-846.29,0.00044383,32]
[325347023,1714745488306,-500.0,0.00044383,32]
[325347024,1714745488316,-1920.29,0.00044383,32]
[325347025,1714745488325,-744.38,0.00044383,32]
[325347026,1714745488335,-500.0,0.00044383,32]
[325347027,1714745488345,-912.11,0.00044383,32]
[325347028,1714745488354,-500.0,0.00044383,32]
[325347029,1714745488364,-506.86,0.00044383,32]
[325347030,1714745488373,-500.0,0.00044383,32]
[325347031,1714745488383,-500.0,0.00044383,32]
[325347032,1714745488394,-500.0,0.00044383,32]
[325347033,1714745488405,-470.31664429,0.00044383,32]
[325347034,1714745488424,-29.68335571,0.00044383,32]
[325347035,1714745488434,-278.85164429,0.00044383,32]
[325347048,1714745626999,-150.0,0.00011,2]
[325347051,1714746281450,1002.06246354,0.0001,4]
[325347058,1714746418185,-545.60520279,0.00010798,2]
[325347059,1714746418209,-1629.15822054,0.00011,2]
[325347060,1714746418233,-418.75091594,0.000165,2]
[325347061,1714746418255,-182.29,0.00016712,2]
[325347062,1714746418277,-155.0,0.00016997,2]
[325347063,1714746418298,-604.00000064,0.00016997,2]
[325347064,1714746418321,-450.0,0.00018,3]
[325347065,1714746418345,-500.0,0.000185,2]
[325347079,1714746601517,-178.29,0.00019451,2]
[325347080,1714746601537,-3371.01,0.00019451,2]
[325347081,1714746601557,-8922.7383969,0.00019451,2]
[325347082,1714746603600,150.0,0.0001945,2]
[325347106,1714746632288,-279.05,0.00019999,2]
[325347108,1714746632298,-342.74117,0.0002,3]
[325347110,1714746632312,-157.25883,0.0002,3]
[325347113,1714746632322,-282.55,0.00020799,2]
[325347117,1714746632331,-499.99,0.00020799,2]
[325347121,1714746632341,-14235.93,0.00020799,2]
[325347125,1714746632350,-155.0,0.000209,2]
[325347127,1714746632360,-1752.0856742,0.00020982,2]
[325347129,1714746632369,-210.0,0.00021395,2]
[325347131,1714746632379,-151.21,0.00021644,2]
[325347133,1714746632388,-550.0,0.00022,3]
[325347135,1714746632399,-1055.53945852,0.00022,2]
[325347137,1714746632409,-1971.0,0.000226,2]
[325347139,1714746632418,-205.89797358,0.00027686,2]
[325347141,1714746632428,-15377.48179355,0.00027696,2]
[325347143,1714746632437,-1061.60709083,0.00027976,2]
[325347144,1714746632447,-996.47365522,0.00027976,2]
[325347145,1714746632456,-266.30967222,0.00027976,2]
[325347146,1714746632466,-155.06922645,0.00027976,2]
[325347147,1714746632476,-787.56352096,0.00027976,2]
[325347148,1714746632486,-155.0,0.00027976,2]
[325347149,1714746632495,-431.95467805,0.00027976,2]
[325347150,1714746632504,-208.94567073,0.00027976,2]
[325347151,1714746632514,-171.43660198,0.00027976,2]
[325347152,1714746632524,-572.77425807,0.00027976,7]
[325347153,1714746632533,-138.59339447,0.00027976,2]
[325347154,1714746632546,-360.06880694,0.00027976,2]
[325347155,1714746632556,-362.02899713,0.00027976,10]
[325347156,1714746632565,-1171.59028559,0.00027976,2]
[325347157,1714746632575,-409.24645721,0.00027976,2]
[325347158,1714746632585,-237.06070693,0.00027976,2]
[325347159,1714746632594,-3452.17753,0.00027977,2]
[325347161,1714746632771,-373.1648316,0.00027977,2]
[325347163,1714746632784,-24.24995834,0.00027977,2]
[325347165,1714746632793,-219.70577224,0.00027977,3]
[325347167,1714746632803,-669.4705482,0.00027977,2]
[325347169,1714746632812,-7435.61533075,0.00027977,2]
[325347171,1714746632822,-563.78410782,0.00029,2]
[325347173,1714746632831,-884.80886652,0.0003,4]
[325347175,1714746632841,-250.0,0.00030402,2]
[325347177,1714746632851,-150.0,0.00031168,2]
[325347179,1714746632860,-151.21,0.00031256,2]
[325347181,1714746632870,-250.0,0.00031316,2]
[325347183,1714746632880,-664.85,0.0003153,2]
[325347185,1714746632889,-174.75,0.00033549,120]
[325347187,1714746632900,-310.03,0.00033878,2]
[325347189,1714746632909,-159.62,0.00034097,2]
[325347190,1714746632918,-20905.5,0.00034165,2]
[325347193,1714746632927,-159.62,0.0003469,2]
[325347194,1714746632936,-152.71,0.00034733,2]
[325347196,1714746632945,-152.71,0.00034755,2]
[325347198,1714746632955,-152.71,0.00034776,2]
[325347200,1714746632963,-152.71,0.00034798,2]
[325347202,1714746632973,-152.71,0.0003482,2]
[325347204,1714746632982,-152.71,0.00034841,2]
[325347206,1714746632991,-152.71,0.00034863,2]
[325347208,1714746633000,-152.71,0.00034885,2]
[325347210,1714746633010,-152.71,0.00034906,2]
[325347212,1714746633019,-10964.93224265,0.00035,4]
[325347214,1714746633028,-487.89,0.00035118,10]
[325347216,1714746633038,-414.36,0.00035128,2]
[325347218,1714746633047,-414.36,0.00035128,2]
[325347220,1714746633056,-910.66,0.00035129,2]
[325347222,1714746633065,-184.4,0.00035129,2]
[325347224,1714746633075,-159.62,0.00035282,2]
[325347226,1714746633083,-406.58,0.0003549,10]
[325347228,1714746633093,-9121.5931735,0.000355,2]
[325347230,1714746633105,-5185.85085,0.000355,2]
[325347232,1714746633116,-3140.88904799,0.000355,2]
[325347273,1714746638298,-263.8,0.000355,2]
[325347284,1714746638530,-464.51322832,0.000355,2]
[325347285,1714746638540,-34.04504856,0.000356,30]
[325347286,1714746638552,-763.9160935,0.000356,30]
[325347287,1714746638562,-159.62,0.00035874,2]
[325347288,1714746638571,-2256.36390655,0.00037,60]
[325347291,1714746638790,-246.63609345,0.00037,60]
[325347294,1714746638800,-163.98,0.00037303,2]
[325347297,1714746638809,-174.75,0.00037742,120]
[325347299,1714746638819,-310.03,0.00038113,2]
[325347301,1714746638828,-4088.79484012,0.000389,15]
[325347303,1714746638839,-2500.0,0.00039111,90]
[325347306,1714746638848,-157.03362672,0.000399,2]
[325347309,1714746638858,-376.5851,0.000399,2]
[325347312,1714746638868,-193.31284266,0.0004,2]
[325347315,1714746638878,-22153.95208094,0.0004,4]
[325347318,1714746638888,-557.91381552,0.0004,4]
[325347321,1714746638897,-257.86236285,0.0004,4]
[325347323,1714746638906,-2753.3,0.00040327,79]
[325347326,1714746638916,-157.03362665,0.00040614,2]
[325347329,1714746638925,-151.21,0.00040868,2]
[325347332,1714746638935,-19165.38,0.00041,14]
[325347335,1714746638944,-1000.0,0.00041095,2]
[325347338,1714746638954,-157.0,0.00041096,2]
[325347340,1714746638963,-157.03362665,0.00041329,2]
[325347342,1714746638972,-174.75,0.00041936,120]
[325347344,1714746638982,-5000.0,0.00042,120]
[325347346,1714746638992,-5000.0,0.00042,14]
[325347348,1714746639002,-157.03362665,0.00042043,2]
[325347350,1714746639011,-310.03,0.00042347,2]
[325347352,1714746639020,-1000.0,0.00042465,2]
[325347354,1714746639030,-152.0,0.00042661,3]
[325347356,1714746639039,-157.03362665,0.00042757,2]
[325347358,1714746639049,-1149.73089262,0.00042958,5]
[325347360,1714746639059,-160.00073898,0.00043,15]
[325347362,1714746639068,-300.0,0.00043,4]
[325347364,1714746639078,-1050.34272731,0.0004312,10]
[325347366,1714746639089,-157.03362665,0.00043471,2]
[325347368,1714746639099,-1126.89491296,0.00043495,10]
[325347370,1714746639109,-1086.10823037,0.00043495,10]
[325347372,1714746639119,-267.439,0.00043495,30]
[325347375,1714746639130,-10297.4554,0.0004358,7]
[325347377,1714746639140,-3003.6,0.00043653,98]
[325347379,1714746639152,-5000.89,0.0004368,48]
[325347380,1714746639161,-1000.0,0.00043687,30]
[325347383,1714746639171,-500.0,0.00043687,20]
[325347385,1714746639180,-7500.0,0.000437,2]
[325347386,1714746639189,-578.3778,0.00043735,2]
[325347388,1714746639199,-167.29644178,0.00043735,2]
[325347391,1714746639210,-387.6437669,0.00043735,18]
[325347393,1714746639219,-1712.7569,0.00043735,2]
[325347395,1714746639231,-5733.7919,0.00043735,120]
[325347397,1714746639240,-500.0,0.000438,120]
[325347399,1714746639250,-11747.5223248,0.000438,10]
[325347401,1714746639262,-344661.95710051,0.000438,18]
[325347403,1714746639272,-441.0,0.00043835,7]
[325347405,1714746639281,-462.96875999,0.00043835,30]
[325347407,1714746639292,-1605.82144297,0.00043835,10]
[325347409,1714746639302,-489.60533251,0.00043835,6]
[325347411,1714746639311,-262.05080858,0.00043835,2]
[325347413,1714746639321,-500.0,0.00043835,30]
[325347415,1714746639331,-561.74453559,0.00043835,30]
[325347417,1714746639341,-500.0,0.00043835,30]
[325347419,1714746639351,-500.0,0.00043835,30]
[325347421,1714746639360,-500.0,0.00043835,30]
[325347423,1714746639370,-341.19,0.00043835,30]
[325347425,1714746639379,-502.80273717,0.00043835,30]
[325347427,1714746639389,-500.0,0.00043835,30]
[325347429,1714746639400,-500.0,0.00043835,30]
[325347431,1714746639410,-156.57460893,0.00043835,30]
[325347433,1714746639419,-500.0,0.00043835,30]
[325347435,1714746639428,-436.13131744,0.00043835,30]
[325347437,1714746639438,-500.0,0.00043835,30]
[325347439,1714746639448,-234.54402154,0.00043835,30]
[325347440,1714746639458,-500.0,0.00043835,30]
[325347441,1714746639467,-500.0,0.00043835,30]
[325347442,1714746639477,-500.0,0.00043835,30]
[325347443,1714746639486,-500.0,0.00043835,30]
[325347444,1714746639495,-500.0,0.00043835,30]
[325347445,1714746639505,-500.0,0.00043835,30]
[325347446,1714746639515,-500.0,0.00043835,30]
[325347447,1714746639524,-1095.52,0.00043835,30]
[325347448,1714746639534,-500.0,0.00043835,30]
[325347449,1714746639543,-503.37684176,0.00043835,30]
[325347450,1714746639552,-1428.08,0.00043835,30]
[325347451,1714746639561,-721.57,0.00043835,30]
[325347452,1714746639570,-1360.1,0.00043835,30]
[325347454,1714746639580,-1177.41,0.00043835,30]
[325347456,1714746639590,-500.0,0.00043835,30]
[325347458,1714746639599,-805.25,0.00043835,30]
[325347460,1714746639609,-500.0,0.00043835,30]
[325347462,1714746639618,-500.0,0.00043835,30]
[325347464,1714746639627,-500.0,0.00043835,30]
[325347466,1714746639636,-1145.57,0.00043835,30]
[325347468,1714746639645,-1633.21,0.00043835,30]
[325347470,1714746639658,-765.01,0.00043835,30]
[325347472,1714746639667,-560.22,0.00043835,30]
[325347474,1714746639676,-500.0,0.00043835,30]
[325347476,1714746639686,-500.0,0.00043835,30]
[325347478,1714746639695,-1213.05,0.00043835,30]
[325347480,1714746639704,-564.35,0.00043835,30]
[325347482,1714746639714,-500.0,0.00043835,30]
[325347484,1714746639724,-500.0,0.00043835,30]
[325347486,1714746639732,-500.0,0.00043835,30]
[325347488,1714746639742,-500.0,0.00043835,30]
[325347490,1714746639751,-500.0,0.00043835,30]
[325347492,1714746639761,-500.0,0.00043835,30]
[325347494,1714746639770,-667.63,0.00043835,30]
[325347496,1714746639779,-669.89,0.00043835,30]
[325347498,1714746639789,-1656.55,0.00043835,30]
[325347500,1714746639799,-500.0,0.00043835,30]
[325347502,1714746639808,-500.0,0.00043835,30]
[325347504,1714746639818,-500.0,0.00043835,30]
[325347506,1714746639827,-500.0,0.00043835,30]
[325347508,1714746639836,-551.34760803,0.00043835,30]
[325347510,1714746639845,-1312.68,0.00043835,30]
[325347512,1714746639855,-500.0,0.00043835,30]
[325347514,1714746639864,-674.87,0.00043835,30]
[325347516,1714746639876,-938.79,0.00043835,30]
[325347518,1714746639885,-500.0,0.00043835,30]
[325347520,1714746639895,-500.0,0.00043835,30]
[325347522,1714746639910,-500.0,0.00043835,30]
[325347524,1714746639919,-717.53,0.00043835,30]
[325347526,1714746639928,-500.0,0.00043835,30]
[325347528,1714746639938,-1065.17,0.00043835,30]
[325347530,1714746639947,-500.0,0.00043835,30]
[325347532,1714746639957,-500.0,0.00043835,30]
[325347534,1714746639967,-1127.1,0.00043835,30]
[325347536,1714746639976,-500.0,0.00043835,30]
[325347538,1714746639985,-500.0,0.00043835,30]
[325347540,1714746639994,-500.0,0.00043835,30]
[325347542,1714746640004,-851.2,0.00043835,30]
[325347544,1714746640014,-500.0,0.00043835,30]
[325347546,1714746640024,-500.0,0.00043835,30]
[325347548,1714746640033,-500.0,0.00043835,30]
[325347550,1714746640042,-500.0,0.00043835,30]
[325347552,1714746640051,-500.0,0.00043835,120]
[325347554,1714746640061,-500.0,0.00043835,30]
[325347556,1714746640071,-765.19,0.00043835,30]
[325347558,1714746640080,-500.0,0.00043835,30]
[325347560,1714746640089,-500.0,0.00043835,30]
[325347562,1714746640099,-500.0,0.00043835,30]
[325347564,1714746640108,-592.39,0.00043835,30]
[325347566,1714746640118,-500.0,0.00043835,30]
[325347568,1714746640127,-1934.35,0.00043835,30]
[325347570,1714746640137,-817.24,0.00043835,30]
[325347572,1714746640146,-528.85005722,0.00043835,30]
[325347574,1714746640159,-513.61,0.00043835,30]
[325347576,1714746640168,-871.23,0.00043835,30]
[325347578,1714746640178,-500.0,0.00043835,30]
[325347580,1714746640187,-521.37,0.00043835,30]
[325347582,1714746640196,-500.0,0.00043835,30]
[325347584,1714746640207,-578.61,0.00043835,30]
[325347586,1714746640217,-500.0,0.00043835,30]
[325347588,1714746640229,-993.86,0.00043835,30]
[325347590,1714746640239,-1854.71,0.00043835,30]
[325347592,1714746640249,-500.0,0.00043835,30]
[325347594,1714746640259,-669.48,0.00043835,30]
[325347596,1714746640268,-500.0,0.00043835,30]
[325347598,1714746640279,-780.14,0.00043835,30]
[325347600,1714746640288,-577.84,0.00043835,30]
[325347602,1714746640297,-500.0,0.00043835,30]
[325347604,1714746640307,-161.43351786,0.00043835,30]
[325347606,1714746640316,-500.0,0.00043835,30]
[325347608,1714746640327,-500.0,0.00043835,30]
[325347610,1714746640336,-500.0,0.00043835,30]
[325347612,1714746640346,-500.0,0.00043835,30]
[325347614,1714746640355,-500.0,0.00043835,30]
[325347616,1714746640365,-582.35,0.00043835,30]
[325347618,1714746640374,-773.88,0.00043835,30]
[325347620,1714746640384,-500.0,0.00043835,30]
[325347622,1714746640393,-1701.99,0.00043835,30]
[325347624,1714746640403,-500.0,0.00043835,30]
[325347626,1714746640413,-500.0,0.00043835,30]
[325347628,1714746640422,-500.0,0.00043835,30]
[325347630,1714746640431,-500.0,0.00043835,30]
[325347633,1714746640440,-658.0,0.00043835,30]
[325347636,1714746640465,-1163.15,0.00043835,30]
[325347638,1714746640475,-1035.11,0.00043835,30]
[325347641,1714746640486,-500.0,0.00043835,30]